{"text_format":"1","workbook":"xlsx","n_sheets":7,"sheets":["JPK-Nagłówek","JPK-Sprzedaż","JPK-Zakup","VAT-7","JPK - uzgodnienie z VAT-7","Parametry","techniczne"],"not_rendered":{"charts":0,"images":1,"macros":1,"external_links":0,"defined_names":105,"comments":6,"pivot_tables":0},"unopened":[],"bounds":{"document_bytes":16777216,"sheet_cells":100000,"rows_first":2000,"rows_last":500,"rows_between":2000,"halvings":0,"cell_chars":16384,"cell_head_chars":4096},"cells_cut":0,"cells_raw":0,"read":"whole","date_system":"1900"}

{"sheet":"JPK-Nagłówek","index":0,"n_rows":15,"n_cols":10,"rows_kept":15,"cut":false,"hidden":false,"merged":[[5,8,5,11],[3,8,3,15]]}
[null,null,null,null,null,"JPK_VAT",null,null,null,"wersja obowiązująca od 1 stycznia 2018"]
[null,null,null,{"$f":"DataWytworzenia()","v":"2020-10-19T20:26:07"}]
[]
[null,null,"Cel złożenia:","0",null,null,null,"Pełna nazwa podmiotu:","Pełna nazwa przedsiębiorstwa"]
[null,null,null,null,null,null,null,"NIP:","1111111111"]
[null,null,"Data od:","2016-07-01",null,null,null,"Email:","me@wjaworski.pl"]
[null,null,"Data do:","2016-07-31"]
[]
[]
[]
[]
[]
[]
[null,"Pola obowiązkowe:"]
[null,"Pola opcjonalne:"]

{"sheet":"JPK-Sprzedaż","index":1,"n_rows":16,"n_cols":40,"rows_kept":16,"cut":false,"hidden":false,"merged":[]}
[null,null,null,"Zestawienie dla danych od dnia:",{"$f":"IF(DataOd = \"\",\"\",DataOd)","v":"2016-07-01"},null,"Liczba wierszy:",{"$f":"C4","v":10},{"$f":"IF(I7=\"\",\"\",SUBTOTAL(5,I7:I1048576))","v":"2015-08-03"}]
[null,null,null,"do dnia:",{"$f":"IF(DataDo=\"\",\"\",DataDo)","v":"2016-07-31"},null,"Podatek należny:",{"$f":"Q4+S4+U4+Y4+AA4+AC4+AE4+AH4+AJ4+AK4+AL4-AM4-AN4","v":4090.05},{"$f":"IF(I7=\"\",\"\",SUBTOTAL(4,I7:I1048576))","v":"2015-08-31"}]
[]
[null,null,{"$f":"SUBTOTAL(3,C7:C1048576)","v":10},null,null,null,null,null,null,null,{"$f":"SUBTOTAL(9,K7:K1048576)","v":0},{"$f":"SUBTOTAL(9,L7:L1048576)","v":0},0,0,0,0,0,0,0,18367.400000000001,4090.05,0,0,0,0,0,0,0,0,0,0,0,0,0,0,0,0,0,{"$f":"SUBTOTAL(9,AM7:AM1048576)","v":0},{"$f":"SUBTOTAL(9,AN7:AN1048576)","v":0}]
[]
[null,null,"Lp. ","Błąd","NIP kontrahenta","Nazwa kontrahenta","Adres kontrahenta","Dowód sprzedaży","Data wystawienia","Data sprzedaży","K 10","K 11","K 12","K 13","K 14","K 15","K 16","K 17","K 18","K 19","K 20","K 21","K 22","K 23","K 24","K 25","K 26","K 27","K 28","K 29","K 30","K 31","K 32","K 33","K 34","K 35","K 36","K 37","K 38","K 39"]
[null,null,1,null,"5251061970","\"MORA SERVIS\" TECHNIKA GRZEWCZA I SANITARNA MARIUSZ NOWICKI","09-402 PŁOCK, RÓŻANA 50","150160390","2015-08-21",null,null,null,null,null,null,null,null,null,null,284.42,65.42]
[null,null,2,null,"2112345679","INSTALATORSTWO GAZOWE ROMAN STAWSKI","01-313 WARSZAWA, UL. KARABELI 3 M. 18","150161855","2015-08-24",null,null,null,null,null,null,null,null,null,null,2020,464.6]
[null,null,3,null,"9442051648","ZAKŁAD INSTALACJI WOD.KAN.,GAZU I C.O. SŁAWOMIR FILOCHA","41-103 SIEMIANOWICE ŚL., MACIEJKOWICKA 1","150161128","2015-08-21",null,null,null,null,null,null,null,null,null,null,10901.41,2507.3200000000002]
[null,null,4,null,"6691001719","ZAKŁAD  OGÓLNOBUD. I INSTALACJI SANITARNYCH  ROMAN SIKORSKI","11-001 DYWITY, OLSZTYŃSKA 24  A","150156171","2015-08-14",null,null,null,null,null,null,null,null,null,null,2081.75,478.8]
[null,null,5,null,"7781104547","CENTURION OPAKOWANIA MARZENA KABZIŃSKA","85-426 BYDGOSZCZ, UL.BRONIKOWSKIEGO 23","150164731","2015-08-27",null,null,null,null,null,null,null,null,null,null,109.85,25.27]
[null,null,6,null,"5492148595","ZAKŁAD USŁUGOWO HANDLOWY HYDRAULIK BOGDAN MIKOŁAJCZAK","64-920 PIŁA, UL. KOŁOBRZESKA 18","150167259","2015-08-31",null,null,null,null,null,null,null,null,null,null,1275,293.25]
[null,null,7,null,"9661319453","PRZEDSIĘBIORSTWO HANDLOWO-USŁUGOWE ROMAN WOŹNIAKOWSKI","54-434 WROCŁAW, UL.BUDZISZYŃSKA 33/4","157016834","2015-08-20",null,null,null,null,null,null,null,null,null,null,-253.5,-58.31]
[null,null,8,null,"5342016254","HYDRONICS S.C. WŁODZIMIERZ BRZEZIŃSKI, JAROSŁAW WIELAND","72-006  SZCZECIN, UL. WELECKA 50A MIERZYN","150148438","2015-08-03",null,null,null,null,null,null,null,null,null,null,584.57000000000005,0]
[null,null,9,null,"5923193667","PPH \"TARANKO\"","80-557 GDAŃSK, UL.MARYNARKI POLSKIEJ 73 B","150150099","2015-08-05",null,null,null,null,null,null,null,null,null,null,546,125.58]
[null,null,10,null,"5262493733","NOWOCZESNE SYSTEMY GRZEWCZE I SANITARNE MARIUSZ KOWALCZYK","97-330 SULEJÓW, PRZYGŁÓW UL. PRZYGŁÓW LAS 120","150155828","2015-08-14",null,null,null,null,null,null,null,null,null,null,817.9,188.12]

{"sheet":"JPK-Zakup","index":2,"n_rows":16,"n_cols":18,"rows_kept":16,"cut":false,"hidden":false,"merged":[]}
[null,null,null,"Zestawienie dla danych od dnia:",{"$f":"IF(DataOd = \"\",\"\",DataOd)","v":"2016-07-01"},null,"Liczba wierszy:",{"$f":"C4","v":10},null,{"$f":"IF(J7=\"\",\"\",SUBTOTAL(5,J7:J1048576))","v":"2015-07-10"}]
[null,null,null,"do dnia:",{"$f":"IF(DataDo=\"\",\"\",DataDo)","v":"2016-07-31"},null,"Podatek naliczony:",{"$f":"L4+N4+O4+P4+Q4+R4","v":5877},null,{"$f":"IF(J7=\"\",\"\",SUBTOTAL(4,J7:J1048576))","v":"2015-08-14"}]
[]
[null,null,{"$f":"SUBTOTAL(3,C7:C1048576)","v":10},null,null,null,null,null,null,null,{"$f":"SUBTOTAL(9,K7:K1048576)","v":0},{"$f":"SUBTOTAL(9,L7:L1048576)","v":0},25551.47,5877,0,0,{"$f":"SUBTOTAL(9,Q7:Q1048576)","v":0},{"$f":"SUBTOTAL(9,R7:R1048576)","v":0}]
[]
[null,null,"Lp. ","Błąd","NIP dostawcy","Nazwa dostawcy","Adres dostawcy","Dowód zakupu","Data zakupu","Data wpływu","K_43","K_44","K_45","K_46","K_47","K_48","K_49","K_50"]
[null,null,1,null,"7811001712","FABRYKA ARMATURY HAWLE SPÓŁKA Z O.O","62-028 KOZIEGŁOWY, UL. PIASKOWA 9","F115/07/474","2015-07-31","2015-08-03",null,null,3272.1,752.58]
[null,null,2,null,"7880008752","WAVIN POLSKA S.A.","64-320 BUK, UL. DOBIEŻYŃSKA 43","7130123566","2015-08-11","2015-08-14",null,null,288.95999999999998,66.459999999999994]
[null,null,3,null,"5860005844","DANFOSS POLAND SP. Z O.O.","05-825 GRODZISK MAZOWIECKI, UL. CHRZANOWSKA 5","2380481380","2015-07-31","2015-08-03",null,null,1739.11,400]
[null,null,4,null,"6310101649","BANK SPÓŁDZIELCZY W GLIWICACH","44-100 GLIWICE, UL.DWORCOWA 41","46/08/15/GL/FSL","2015-08-03","2015-08-06",null,null,288.91000000000003,66.45]
[null,null,5,null,"7772751164","SANITEC KOŁO SP. Z O.O.","62-600 KOŁO, UL. TORUŃSKA 154","9100543736","2015-08-07","2015-08-10",null,null,19,4.37]
[null,null,6,null,"9372473656","FOX FITTINGS SP. Z O.O. SP.K.","43-330 Wilamowice, ul. Więźniów Oświęcimia 21b","405/F00/07/2015","2015-07-24","2015-07-27",null,null,888.92,204.45]
[null,null,7,null,"5242106779","ATLANTIC POLSKA SP. Z O.O.","03-044 WARSZAWA, UL.PŁOCHOCIŃSKA 115","ARIN152040","2015-07-07","2015-07-10",null,null,1080,248.4]
[null,null,8,null,"9442051648","FERRO S.A.","32-050 SKAWINA, UL. PRZEMYSŁOWA 7","914/03/2015/BON","2015-07-31","2015-08-03",null,null,-13377.55,-3076.67]
[null,null,9,null,"5842733869","3W SERWIS SP.Z O.O. NIERUCHOMOŚCI SP.KOMAND-AKCYJNA","80-310 GDAŃSK, UL.J.H.DĄBROWSKIEGO 26/3","3/8/2015","2015-08-04","2015-08-07",null,null,8449,1943.27]
[null,null,10,null,"9691111800","ZWS \"SILESIA\" SP. Z O.O.","44-109 GLIWICE, UL.WYCZÓŁKOWSKIEGO 20","1731034421","2015-07-20","2015-07-23",null,null,22903.02,5267.69]

{"sheet":"VAT-7","index":3,"n_rows":166,"n_cols":21,"rows_kept":166,"cut":false,"hidden":false,"merged":[[157,1,157,18],[165,1,166,15],[72,1,72,18],[165,16,166,17],[165,18,166,18],[69,1,71,15],[70,16,71,17],[70,18,71,18],[126,11,126,13],[126,14,126,18],[127,11,127,13],[127,14,127,18],[124,4,127,10],[78,3,78,13],[78,14,78,18],[79,3,79,13],[79,14,79,18],[80,3,80,13],[80,14,80,18],[75,3,75,13],[75,14,75,18],[76,3,76,13],[76,14,76,18],[77,3,77,13],[77,14,77,18],[84,3,84,9],[1,1,1,18],[2,1,2,8],[3,1,3,3],[3,4,3,8],[9,1,9,4],[9,5,9,18],[11,1,11,18],[12,3,12,11],[12,12,12,18],[13,3,13,11],[4,5,4,14],[5,6,6,6],[5,8,5,10],[6,8,6,10],[8,1,8,4],[8,5,8,18],[23,3,23,14],[23,15,23,18],[24,3,24,14],[24,15,24,18],[25,3,25,9],[25,10,25,14],[25,15,25,18],[15,1,15,18],[16,3,16,8],[17,1,17,18],[18,3,18,18],[20,3,20,18],[22,3,22,18],[30,3,30,9],[30,10,30,11],[30,12,30,18],[32,1,34,9],[33,10,34,13],[33,14,34,18],[26,3,26,9],[26,10,26,14],[26,15,26,18],[28,3,28,6],[28,7,28,15],[28,17,28,18],[39,4,39,9],[39,14,39,18],[40,4,40,9],[40,10,40,13],[40,14,40,18],[41,3,41,9],[41,14,41,18],[35,3,35,9],[36,3,36,9],[36,10,36,13],[37,3,37,9],[38,3,38,9],[38,10,38,13],[45,3,45,9],[45,14,45,18],[46,3,46,9],[46,10,46,13],[46,14,46,18],[47,3,47,9],[47,14,47,18],[42,3,42,9],[42,10,42,13],[42,14,42,18],[43,4,43,9],[43,14,43,18],[44,4,44,9],[44,10,44,13],[44,14,44,18],[51,3,52,9],[52,10,52,13],[53,3,54,9],[54,10,54,13],[55,3,56,9],[55,14,55,18],[56,10,56,13],[56,14,56,18],[48,3,48,9],[48,10,48,13],[48,14,48,18],[49,3,49,9],[49,14,49,18],[50,3,50,9],[50,10,50,13],[50,14,50,18],[60,3,60,9],[60,10,60,13],[60,14,60,18],[61,3,61,9],[61,14,61,18],[62,3,62,9],[62,10,62,13],[62,14,62,18],[57,3,57,9],[57,14,57,18],[58,3,58,9],[58,10,58,13],[58,14,58,18],[59,3,59,9],[59,14,59,18],[66,3,66,9],[66,10,66,13],[66,14,66,18],[67,3,67,9],[67,14,67,18],[68,3,68,9],[68,10,68,13],[68,14,68,18],[63,3,63,9],[63,14,63,18],[64,3,64,9],[64,10,64,13],[64,14,64,18],[65,3,65,9],[65,14,65,18],[84,10,85,13],[84,14,85,18],[85,3,85,9],[87,1,87,18],[88,1,88,13],[88,14,88,18],[81,3,81,13],[81,14,81,18],[82,3,82,13],[82,14,82,18],[83,3,83,9],[83,10,83,13],[83,14,83,18],[109,1,109,18],[106,14,106,18],[107,14,107,18],[106,2,107,13],[91,1,91,18],[93,2,93,9],[92,14,92,18],[92,10,92,13],[89,3,89,13],[89,14,89,18],[90,3,90,13],[90,14,90,18],[93,10,93,13],[93,14,93,18],[105,14,105,18],[98,2,99,13],[100,2,101,13],[102,2,103,13],[104,2,105,13],[108,16,108,18],[95,2,96,9],[94,10,94,13],[102,14,102,18],[104,14,104,18],[134,9,135,11],[151,1,151,18],[149,16,149,18],[144,1,144,18],[145,1,145,18],[134,2,134,5],[135,2,135,5],[114,20,115,20],[114,14,114,18],[140,7,141,18],[122,3,123,13],[124,11,124,13],[125,11,125,13],[123,14,123,18],[124,14,124,18],[125,14,125,18],[128,14,128,18],[129,14,130,18],[129,5,130,13],[118,14,118,18],[115,14,116,18],[120,14,121,18],[121,2,121,13],[133,2,133,5],[110,2,111,13],[112,2,113,13],[114,2,114,13],[115,2,115,13],[116,2,116,13],[119,2,119,13],[117,14,117,18],[119,14,119,18],[120,2,120,13],[117,2,118,13],[113,14,113,18],[110,14,110,18],[112,14,112,18],[111,14,111,18],[97,1,97,18],[98,14,98,18],[100,14,100,18],[99,14,99,18],[94,14,94,18],[94,2,94,9],[95,14,95,18],[95,10,95,13],[96,10,96,13],[96,14,96,18],[162,1,162,18],[134,6,135,8],[158,1,158,18],[159,1,159,18],[160,1,161,18],[101,14,101,18],[103,14,103,18],[132,1,132,16],[154,12,155,18],[152,12,152,18],[153,12,153,18],[152,6,152,11],[153,6,153,11],[152,2,152,5],[153,2,153,5],[154,2,154,5],[154,6,154,11],[155,2,155,5],[155,8,155,11],[136,12,136,18],[136,3,136,10],[140,1,140,4],[134,12,135,15],[134,16,135,18]]}
[]
[]
[null," 1. Identyfikator podatkowy NIP podatnika",null,null,null,null,null,null,null,null,null," 2. Nr dokumentu",null,null,null,null,null," 3. Status"]
[null,null,null,null,{"$f":"NIP*1","v":1111111111},null,null,null,null,null,null,""]
[null,"VAT-7",null,null,null,"DEKLARACJA DLA PODATKU OD TOWARÓW I USŁUG"]
[null,null,null,null,null,null,"za"," 4. Miesiąc"," 5. Rok"]
[null,null,null,null,null,null,null,{"$f":"MONTH(DataOd)","v":7},{"$f":"YEAR(DataOd)","v":2016}]
[]
[null," Podstawa prawna:",null,null,null,"Art. 99 ust. 1 ustawy z dnia 11 marca 2004 r. o podatku od towarów i usług (Dz. U. z 2017 r. poz. 1221, z późn. zm.), zwanej dalej „ustawą”."]
[null," Składający:",null,null,null,"Podatnicy, o których mowa w art. 15 ustawy, obowiązani do składania deklaracji za okresy miesięczne zgodnie z art. 99 ust. 1 ustawy."]
[]
[null," A. MIEJSCE I CEL SKŁADANIA DEKLARACJI"]
[null,null,null," 6. Urząd skarbowy, do którego adresowana jest deklaracja",null,null,null,null,null,null,null,null," 7. Cel złożenia formularza (zaznaczyć właściwy kwadrat):"]
[null,null,null,null,null,null,null,null,null,null,null,null,"1. złożenie deklaracji",null,null,null,"2. korekta deklaracji 1)"]
[null,null,null,null,null,null,null,null,null,null,null,null,{"$f":"(CelZlozenia=1)","v":false},null,null,null,{"$f":"(CelZlozenia=2)","v":false}]
[null," B. DANE IDENTYFIKACYJNE PODATNIKA"]
[null,null,null,"* - dotyczy podmiotów niebędących osobami fizycznymi",null,null,null,null,null,null,"** - dotyczy podmiotów będących osobami fizycznymi"]
[]
[null,null,null," 8. Rodzaj podatnika (zaznaczyć właściwy kwadrat):"]
[null,null,null,null,null,null,"1. podatnik niebędący osobą fizyczną",null,null,null,null,null,null,"2. osoba fizyczna"]
[null,null,null," 9. Nazwa pełna, REGON * / Nazwisko, pierwsze imię, data urodzenia **"]
[]
[null,null,null,{"$f":" PelnaNazwa & \", <REGON>\"","v":"Pełna nazwa przedsiębiorstwa, <REGON>"}]
[null,null,null," 9. Nazwa pełna",null,null,null,null,null,null,null,null,null,null,null,"REGON"]
[]
[null,null,null," 9. Nazwisko",null,null,null,null,null,null,"Pierwsze imię",null,null,null,null,"Data urodzenia (ddmmrrrr)"]
[]
[]
[]
[]
[]
[]
[null," C. ROZLICZENIE PODATKU NALEŻNEGO     "]
[null,null,null,null,null,null,null,null,null,null,"Podstawa opodatkowania w zł",null,null,null,"Podatek należny w zł"]
[]
[null,null,null," 1. Dostawa towarów oraz świadczenie usług na terytorium kraju,",null,null,null,null,null,null," 10."]
[null,null,null," zwolnione od podatku",null,null,null,null,null,null,{"$f":"+ROUND('JPK-Sprzedaż'!K4,)","v":0}]
[null,null,null," 2. Dostawa towarów oraz świadczenie usług poza terytorium",null,null,null,null,null,null," 11."]
[null,null,null," kraju",null,null,null,null,null,null,{"$f":"+ROUND('JPK-Sprzedaż'!L4,)","v":0}]
[null,null,null,null," 2a. w tym świadczenie usług, o których mowa w art. 100",null,null,null,null,null," 12."]
[null,null,null,null,"  ust. 1 pkt 4 ustawy",null,null,null,null,null,{"$f":"+ROUND('JPK-Sprzedaż'!M4,)","v":0}]
[null,null,null," 3. Dostawa towarów oraz świadczenie usług na terytorium kraju,",null,null,null,null,null,null," 13."]
[null,null,null," opodatkowane stawką 0%",null,null,null,null,null,null,{"$f":"+ROUND('JPK-Sprzedaż'!N4,)","v":0}]
[null,null,null,null," 3a. w tym dostawa towarów, o której mowa w art. 129",null,null,null,null,null," 14."]
[null,null,null,null,"  ustawy",null,null,null,null,null,{"$f":"+ROUND('JPK-Sprzedaż'!O4,)","v":0}]
[null,null,null," 4. Dostawa towarów oraz świadczenie usług na terytorium kraju,",null,null,null,null,null,null," 15.",null,null,null," 16."]
[null,null,null," opodatkowane stawką 5%",null,null,null,null,null,null,{"$f":"+ROUND('JPK-Sprzedaż'!P4,)","v":0},null,null,null,{"$f":"+ROUND('JPK-Sprzedaż'!Q4,)","v":0}]
[null,null,null," 5. Dostawa towarów oraz świadczenie usług na terytorium kraju,",null,null,null,null,null,null," 17.",null,null,null," 18."]
[null,null,null," opodatkowane stawką 7% albo 8%",null,null,null,null,null,null,{"$f":"+ROUND('JPK-Sprzedaż'!R4,)","v":0},null,null,null,{"$f":"+ROUND('JPK-Sprzedaż'!S4,)","v":0}]
[null,null,null," 6. Dostawa towarów oraz świadczenie usług na terytorium kraju,",null,null,null,null,null,null," 19.",null,null,null," 20."]
[null,null,null," opodatkowane stawką 22% albo 23%",null,null,null,null,null,null,{"$f":"+ROUND('JPK-Sprzedaż'!T4,)","v":18367},null,null,null,{"$f":"+ROUND('JPK-Sprzedaż'!U4,0)","v":4090}]
[null,null,null," 7. Wewnątrzwspólnotowa dostawa towarów",null,null,null,null,null,null," 21."]
[null,null,null,null,null,null,null,null,null,null,{"$f":"+ROUND('JPK-Sprzedaż'!V4,)","v":0}]
[null,null,null," 8. Eksport towarów",null,null,null,null,null,null," 22."]
[null,null,null,null,null,null,null,null,null,null,{"$f":"+ROUND('JPK-Sprzedaż'!W4,)","v":0}]
[null,null,null," 9. Wewnątrzwspólnotowe nabycie towarów",null,null,null,null,null,null," 23.",null,null,null," 24."]
[null,null,null,null,null,null,null,null,null,null,{"$f":"+ROUND('JPK-Sprzedaż'!X4,)","v":0},null,null,null,{"$f":"+ROUND('JPK-Sprzedaż'!Y4,)","v":0}]
[null,null,null," 10. Import towarów podlegający rozliczeniu zgodnie z art. 33a",null,null,null,null,null,null," 25.",null,null,null," 26."]
[null,null,null,"  ustawy",null,null,null,null,null,null,{"$f":"+ROUND('JPK-Sprzedaż'!Z4,)","v":0},null,null,null,{"$f":"+ROUND('JPK-Sprzedaż'!AA4,)","v":0}]
[null,null,null," 11. Import usług z wyłączeniem usług nabywanych od",null,null,null,null,null,null," 27.",null,null,null," 28."]
[null,null,null,"  podatników podatku od wartości dodanej, do których stosuje\n  się art. 28b ustawy",null,null,null,null,null,null,{"$f":"+ROUND('JPK-Sprzedaż'!AB4,)","v":0},null,null,null,{"$f":"+ROUND('JPK-Sprzedaż'!AC4,)","v":0}]
[null,null,null," 12. Import usług nabywanych od podatników podatku od",null,null,null,null,null,null," 29.",null,null,null," 30."]
[null,null,null,"   wartości dodanej, do których stosuje się art. 28b ustawy",null,null,null,null,null,null,{"$f":"+ROUND('JPK-Sprzedaż'!AD4,)","v":0},null,null,null,{"$f":"+ROUND('JPK-Sprzedaż'!AE4,)","v":0}]
[null,null,null," 13. Dostawa towarów oraz świadczenie usług, dla których",null,null,null,null,null,null," 31."]
[null,null,null,"   podatnikiem jest nabywca zgodnie z art.17 ust. 1 pkt 7 lub 8\n   ustawy (wypełnia dostawca)",null,null,null,null,null,null,{"$f":"+ROUND('JPK-Sprzedaż'!AF4,)","v":0}]
[null,null,null," 14. Dostawa towarów, dla których podatnikiem jest nabywca",null,null,null,null,null,null," 32.",null,null,null," 33."]
[null,null,null,"   zgodnie z art. 17 ust. 1 pkt 5 ustawy (wypełnia nabywca)",null,null,null,null,null,null,{"$f":"+ROUND('JPK-Sprzedaż'!AG4,)","v":0},null,null,null,{"$f":"+ROUND('JPK-Sprzedaż'!AH4,)","v":0}]
[null,null,null," 15. Dostawa towarów oraz świadczenie usług, dla których",null,null,null,null,null,null," 34.",null,null,null," 35."]
[null,null,null,"   podatnikiem jest nabywca zgodnie z art. 17 ust. 1 pkt 7 lub 8\n   ustawy (wypełnia nabywca)",null,null,null,null,null,null,{"$f":"+ROUND('JPK-Sprzedaż'!AI4,)","v":0},null,null,null,{"$f":"+ROUND('JPK-Sprzedaż'!AJ4,)","v":0}]
[]
[null,null,null,null,null,null,null,null,null,null,null,null,null,null,null,null,"VAT-7(18)",null,"1/3"]
[]
[]
[]
[]
[null,null,null," 16. Kwota podatku należnego od towarów i usług objętych spisem z natury, o którym mowa w art. 14 ust. 5",null,null,null,null,null,null,null,null,null,null," 36."]
[null,null,null,"  ustawy",null,null,null,null,null,null,null,null,null,null,{"$f":"+ROUND('JPK-Sprzedaż'!AK4,)","v":0}]
[null,null,null," 17. Zwrot odliczonej lub zwróconej kwoty wydatkowanej na zakup kas rejestrujących, o którym mowa w art. 111",null,null,null,null,null,null,null,null,null,null," 37."]
[null,null,null,"  ust. 6 ustawy",null,null,null,null,null,null,null,null,null,null,{"$f":"+ROUND('JPK-Sprzedaż'!AL4,)","v":0}]
[null,null,null," 18. Kwota podatku należnego od wewnątrzwspólnotowego nabycia środków transportu, wykazanego w poz. 24,",null,null,null,null,null,null,null,null,null,null," 38."]
[null,null,null,"  podlegająca wpłacie w terminie, o którym mowa w art. 103 ust. 3, w związku z ust. 4 ustawy ",null,null,null,null,null,null,null,null,null,null,{"$f":"+ROUND('JPK-Sprzedaż'!AM4,)","v":0}]
[null,null,null," 19. Kwota podatku od wewnątrzwspólnotowego nabycia paliw silnikowych, podlegająca wpłacie w terminach,",null,null,null,null,null,null,null,null,null,null," 39."]
[null,null,null,"  o których mowa w art. 103 ust. 5a i 5b ustawy",null,null,null,null,null,null,null,null,null,null,{"$f":"+ROUND('JPK-Sprzedaż'!AN4,)","v":0}]
[null,null,null,"  Razem: (Poz. 40 = suma kwot z poz. 10, 11, 13, 15, 17, 19, 21, 22,",null,null,null,null,null,null," 40.",null,null,null," 41."]
[null,null,null,"  23, 25, 27, 29, 31, 32 i 34. Poz. 41 = suma kwot z poz. 16, 18, 20, 24,",null,null,null,null,null,null,{"$f":"SUM(K37,K39,K43,K47,K49,K51,K53,K55,K57,K59,K61,K63,K65,K67,K69)","v":18367},null,null,null,{"$f":"SUM(O47)+SUM(O49)+SUM(O51)+SUM(O57)+SUM(O59)+SUM(O61)+SUM(O63)+SUM(O67)+SUM(O69)+SUM(O77)+SUM(O79)-SUM(O81)-SUM(O83)","v":4090}]
[null,null,null,"  26, 28, 30, 33, 35, 36 i 37 pomniejszona o kwotę z poz. 38 i 39)"]
[]
[null," D. ROZLICZENIE PODATKU NALICZONEGO"]
[null," D.1. PRZENIESIENIA",null,null,null,null,null,null,null,null,null,null,null,null,"Podatek do odliczenia w zł"]
[null,null,null," Kwota nadwyżki z poprzedniej deklaracji",null,null,null,null,null,null,null,null,null,null," 42."]
[null,null,null," Kwota z poz. „Kwota do przeniesienia na następny okres rozliczeniowy” z poprzedniej deklaracji lub wynikająca z decyzji."]
[null," D.2. NABYCIE TOWARÓW I USŁUG ORAZ PODATEK NALICZONY Z UWZGLĘDNIENIEM KOREKT"]
[null,null,null,null,null,null,null,null,null,null,"Wartość netto w zł",null,null,null,"Podatek naliczony w zł"]
[null,null," Nabycie towarów i usług zaliczanych u podatnika do środków",null,null,null,null,null,null,null," 43.",null,null,null," 44."]
[null,null," trwałych",null,null,null,null,null,null,null,{"$f":"+ROUND('JPK-Zakup'!K4,)","v":0},null,null,null,{"$f":"+ROUND('JPK-Zakup'!L4,)","v":0}]
[null,null," Nabycie towarów i usług pozostałych",null,null,null,null,null,null,null," 45.",null,null,null," 46."]
[null,null,null,null,null,null,null,null,null,null,{"$f":"+ROUND('JPK-Zakup'!M4,)","v":25551},null,null,null,{"$f":"+ROUND('JPK-Zakup'!N4,)","v":5877}]
[null," D.3. PODATEK NALICZONY – DO ODLICZENIA (w zł)"]
[null,null," Korekta podatku naliczonego od nabycia środków trwałych",null,null,null,null,null,null,null,null,null,null,null," 47."]
[null,null,null,null,null,null,null,null,null,null,null,null,null,null,{"$f":"+ROUND('JPK-Zakup'!O4,)","v":0}]
[null,null," Korekta podatku naliczonego od pozostałych nabyć",null,null,null,null,null,null,null,null,null,null,null," 48."]
[null,null,null,null,null,null,null,null,null,null,null,null,null,null,{"$f":"+ROUND('JPK-Zakup'!P4,)","v":0}]
[null,null," Korekta podatku naliczonego, o której mowa w art. 89b ust. 1 ustawy",null,null,null,null,null,null,null,null,null,null,null," 49."]
[null,null,null,null,null,null,null,null,null,null,null,null,null,null,{"$f":"+ROUND('JPK-Zakup'!Q4,)","v":0}]
[null,null," Korekta podatku naliczonego, o której mowa w art. 89b ust. 4 ustawy",null,null,null,null,null,null,null,null,null,null,null," 50."]
[null,null,null,null,null,null,null,null,null,null,null,null,null,null,{"$f":"+ROUND('JPK-Zakup'!R4,)","v":0}]
[null,null," Razem kwota podatku naliczonego do odliczenia",null,null,null,null,null,null,null,null,null,null,null," 51."]
[null,null," Należy wpisać sumę kwot z poz. 42, 44, 46, 47, 48, 49 i 50.",null,null,null,null,null,null,null,null,null,null,null,{"$f":"SUM(O91,O95,O97,O100,O102,O104,O106)","v":5877}]
[]
[null," E. OBLICZENIE WYSOKOŚCI ZOBOWIĄZANIA PODATKOWEGO LUB KWOTY ZWROTU (w zł)"]
[null,null," Kwota wydatkowana na zakup kas rejestrujących, do odliczenia w danym okresie rozliczeniowym",null,null,null,null,null,null,null,null,null,null,null," 52."]
[null,null," Kwota wykazana w poz. 52 nie może być wyższa od różnicy kwot z poz. 41 i 51.\n Jeżeli różnica kwot pomiędzy poz. 41 i 51 jest mniejsza lub równa 0, wówczas należy wpisać 0.",null,null,null,null,null,null,null,null,null,null,null,null,null,null,null,null,-1]
[null,null," Kwota podatku objęta zaniechaniem poboru",null,null,null,null,null,null,null,null,null,null,null," 53."]
[null,null," Kwota ta nie może być wyższa niż różnica pomiędzy kwotą z poz. 41 a sumą kwot z poz. 51 i 52.\n Jeżeli różnica kwot pomiędzy poz. 41 i 51, pomniejszona o kwotę z poz. 52 jest mniejsza od 0, wówczas należy wpisać 0.\n ",null,null,null,null,null,null,null,null,null,null,null,null,null,null,null,null,-1]
[null,null," Kwota podatku podlegającego wpłacie do urzędu skarbowego",null,null,null,null,null,null,null,null,null,null,null," 54.",null,null,null,null,null,0]
[null,null," Jeżeli różnica kwot pomiędzy poz. 41 i 51 jest większa od 0, wówczas poz. 54=poz. 41 - poz. 51 - poz. 52 - poz. 53",null,null,null,null,null,null,null,null,null,null,null,{"$f":"IF(O85>O108,O85-O108-O112-O114,0)","v":0}]
[null,null," w przeciwnym wypadku należy wpisać 0."]
[null,null," Kwota wydatkowana na zakup kas rejestrujących, przysługująca do zwrotu w danym okresie rozliczeniowym",null,null,null,null,null,null,null,null,null,null,null," 55."]
[]
[null,null," Nadwyżka podatku naliczonego nad należnym",null,null,null,null,null,null,null,null,null,null,null," 56."]
[null,null," Jeżeli różnica kwot pomiędzy poz. 51 i 41 jest większa lub równa 0, wówczas poz. 56=poz. 51 - poz. 41 + poz. 55,",null,null,null,null,null,null,null,null,null,null,null,{"$f":"IF(O85<O108,O108 - O85+O119,0)","v":1787}]
[null,null," w przeciwnym wypadku należy wpisać 0."]
[null,null,null," Kwota do zwrotu na rachunek bankowy wskazany przez podatnika",null,null,null,null,null,null,null,null,null,null," 57."]
[]
[null,null,null,null," w tym kwota do zwrotu",null,null,null,null,null,null," 58. na rachunek VAT",null,null," 59. w terminie 25 dni (art.. 87 ust. 6)"]
[]
[null,null,null,null,null,null,null,null,null,null,null," 60. w terminie 60 dni",null,null," 61. w terminie 180 dni"]
[]
[null,null,null,null,null," Kwota do przeniesienia na następny okres rozliczeniowy",null,null,null,null,null,null,null,null," 62."]
[null,null,null,null,null," Od kwoty z poz. 56 należy odjąć kwotę z poz. 57.",null,null,null,null,null,null,null,null,{"$f":"SUM(O121,-O124)","v":1787}]
[]
[]
[null," F. INFORMACJE DODATKOWE"]
[null,null," Podatnik wykonywał w okresie",null,null,null,"63.",null,null,"64.",null,null,"65.",null,null,null,"66."]
[null,null," rozliczeniowym czynności, o których",null,null,null," art. 119 ustawy ",null,null,"art. 120 ust. 4 lub 5 ustawy ",null,null," art. 122 ustawy ",null,null,null,"art. 136 ustawy "]
[null,null," mowa w (zaznaczyć właściwe kwadraty):"]
[null,null,"67."," Podatnik korzysta z obniżenia zobowiązania podatkowego, o którym mowa w art.. 108 d ustawy",null,null,null,null,null,null,null,null," 68. Podatnik wnioskuje o zwrot podatku na rachunek VAT (wykazany w poz. 58)"]
[null,null,null,null,null,null,"tak",null,null,null,null,null,null,null,null,null,"tak"]
[null,null,null,null,null,null,null,null,false,null,null,false,null,null,false,null,null,null,false]
[]
[null,"VAT-7(18)",null,null,null,"2/3"]
[]
[]
[]
[null," G. INFORMACJA O ZAŁĄCZNIKACH"]
[null,"Do niniejszej deklaracji dołączono (zaznaczyć właściwy kwadrat):"]
[null,null," 69. Wniosek o zwrot podatku (VAT-ZZ)",null,null,null,null,null,null,null,null," 70. Wniosek o przyspieszenie terminu zwrotu podatku (VAT-ZT)"]
[null,null,null,null,null,null,"1. tak",null,"2. nie",null,null,null,null," 1. tak",null,null,"2. nie"]
[null,null," 71. Zawiadomienie o skorygowaniu podstawy opodatkowania oraz kwoty podatku należnego (VAT-ZD)"]
[null,null,null,null,null,null,null,null,"1. tak",null,null," 2. nie"]
[]
[null," H. PODPIS PODATNIKA LUB OSOBY REPREZENTUJĄCEJ PODATNIKA"]
[null,null," 72. Imię",null,null,null," 73. Nazwisko",null,null,null,null,null," 74. Adres e-mail"]
[]
[null,null," 73. Telefon kontaktowy",null,null,null," 74. Data wypełnienia (dzień - miesiąc - rok)",null,null,null,null,null,{"$f":"IF(Email=\"\",\"\",Email)","v":"me@wjaworski.pl"}]
[null,null,null,null,null,null,null,null,{"$f":"DAY(TODAY())*1000000 + MONTH(TODAY())*10000+YEAR(TODAY())","v":14072021}]
[]
[null,"1) Zgodnie z art. 81 ustawy z dnia 29 sierpnia 1997 r. – Ordynacja podatkowa (Dz. U. z 2017 r. poz. 201, z późn. zm.)."]
[]
[null,"Pouczenia"]
[null,"W przypadku niewpłacenia w obowiązującym terminie kwoty z poz. 54 lub wpłacenia jej w niepełnej wysokości, niniejsza deklaracja stanowi podstawę do wystawienia tytułu     wykonawczego zgodnie z przepisami ustawy z dnia 17 czerwca 1966 r. o postępowaniu egzekucyjnym w administracji (Dz. U. z 2017 r. poz. 1201, z późn. zm.)."]
[]
[null," Za podanie nieprawdy lub zatajenie prawdy i przez to narażenie podatku na uszczuplenie grozi odpowiedzialność przewidziana w Kodeksie karnym skarbowym."]
[]
[]
[null,null,null,null,null,null,null,null,null,null,null,null,null,null,null,null,"VAT-7(18)",null,"3/3"]

{"sheet":"JPK - uzgodnienie z VAT-7","index":4,"n_rows":53,"n_cols":3,"rows_kept":53,"cut":false,"hidden":true,"merged":[]}
["ROZLICZENIE PODATKU NALEŻNEGO"]
[null,"Podstawa opodatkowania w zł","Podatek należny w zł"]
["1. Dostawa towarów oraz świadczenie usług, na terotyrium kraju, zwolnione od podatku",{"$f":"+ROUND('JPK-Sprzedaż'!K4,)","v":0}]
["2. Dostawa towarów oraz świadczenie usług poza terytorium kraju",{"$f":"+ROUND('JPK-Sprzedaż'!L4,)","v":0}]
["    2a. w tym świadczenie usług, o których mowa w art. 100 ust. 1 pkt. 4",{"$f":"+ROUND('JPK-Sprzedaż'!M4,)","v":0}]
["3. Dostawa towarów oraz świadczenie usług, na terytorium kraju, opodatkowane stawką 0%",{"$f":"+ROUND('JPK-Sprzedaż'!N4,)","v":0}]
["    3a. w tym dostawa towarów, o której mowa w art. 129 ustawy",{"$f":"+ROUND('JPK-Sprzedaż'!O4,)","v":0}]
["4. Dostawa towarów oraz świadczenie usług, na terytorium kraju, opodatkowane stawką 5%",{"$f":"+ROUND('JPK-Sprzedaż'!P4,)","v":0},{"$f":"+ROUND('JPK-Sprzedaż'!Q4,)","v":0}]
["5. Dostawa towarów oraz świadczenie usług, na terytorium kraju, opodatkowane stawką 7% albo 8%",{"$f":"+ROUND('JPK-Sprzedaż'!R4,)","v":0},{"$f":"+ROUND('JPK-Sprzedaż'!S4,)","v":0}]
["6. Dostawa towarów oraz świadczenie usług, na terytorium kraju, opodatkowane stawką 22% albo 23%",{"$f":"+ROUND('JPK-Sprzedaż'!T4,)","v":18367},{"$f":"+ROUND('JPK-Sprzedaż'!U4,0)","v":4090}]
["7. Wewnątrzwspólnotowa dostawa towarów",{"$f":"+ROUND('JPK-Sprzedaż'!V4,)","v":0}]
["8. Eksport towarów",{"$f":"+ROUND('JPK-Sprzedaż'!W4,)","v":0}]
["9. Wewnątrzwspólnotowe nabycie towarów",{"$f":"+ROUND('JPK-Sprzedaż'!X4,)","v":0},{"$f":"+ROUND('JPK-Sprzedaż'!Y4,)","v":0}]
["10. Import towarów podlegający rozliczeniu zgodnie z art. 33a ustawy",{"$f":"+ROUND('JPK-Sprzedaż'!Z4,)","v":0},{"$f":"+ROUND('JPK-Sprzedaż'!AA4,)","v":0}]
["11. Import usług z wyłączeniem usług nabywanych od podatników podatku od wartości dodanej, do których stosuje się art.. 28b",{"$f":"+ROUND('JPK-Sprzedaż'!AB4,)","v":0},{"$f":"+ROUND('JPK-Sprzedaż'!AC4,)","v":0}]
["12. Import usług nabywanych od podatników podatku od wartości dodanej, do których stosuje się art. 28b",{"$f":"+ROUND('JPK-Sprzedaż'!AD4,)","v":0},{"$f":"+ROUND('JPK-Sprzedaż'!AE4,)","v":0}]
["13. Dostawa towarów oraz świadczenie usług, dla których podatnkikiem jest nabywca zgodnie z art. 17 ust. 1 pkt 7 lub 8 (wypełnia dostawca)",{"$f":"+ROUND('JPK-Sprzedaż'!AF4,)","v":0}]
["14. Dostawa towarów, dla których podatnikiem jest nabywca zgodnie z art. 17 ust. 1 pkt 5 (wypełnia nabywca)",{"$f":"+ROUND('JPK-Sprzedaż'!AG4,)","v":0},{"$f":"+ROUND('JPK-Sprzedaż'!AH4,)","v":0}]
["15. Dostawa towarów oraz świadczenie usług, dla których podatnikiem jest nabywca zgodnie z art. 17 ust. 1 pkt 7 lub 8 (wypełnia nabywca)",{"$f":"+ROUND('JPK-Sprzedaż'!AI4,)","v":0},{"$f":"+ROUND('JPK-Sprzedaż'!AJ4,)","v":0}]
["16. Kwota podatku należnego od towarów i usług objętych spisem z natury, o których mowa w art. 14 ust. 5",null,{"$f":"+ROUND('JPK-Sprzedaż'!AK4,)","v":0}]
["17. Zwrot odliczonej lub zwróconej kwoty wydatkowanej na zakup kas rejestrujących, o których mowa w art.. 111 ust. 6",null,{"$f":"+ROUND('JPK-Sprzedaż'!AL4,)","v":0}]
["18. Kwota podatku należnego od wewnątrzwspólnotowego nabycia środków transportu, wykazanego w poz. 24, podlegająca wpłacie w terminie, o którym mowa w art. 103 ust. 3, w związku z ust. 4",null,{"$f":"+ROUND('JPK-Sprzedaż'!AM4,)","v":0}]
["19. Kwota podatku od wewnątrzwspólnotowego nabycia paliw silnikowych, podlegająca wpłacie w terminach, o których mowa w art. 103 ust. 5a i 5b",null,{"$f":"+ROUND('JPK-Sprzedaż'!AN4,)","v":0}]
[]
[]
[null,{"$f":"+B3+B4+B6+B8+B9+B10+B11+B12+B13+B14+B15+B16+B17+B18+B19","v":18367},{"$f":"+C8+C9+C10+C13+C14+C15+C16+C18+C19+C20-C21-C22-C23","v":4090}]
[]
[]
["ROZLICZENIE PODATKU NALICZONEGO"]
[]
["1. PRZENIESIENIA",null,"Podatek do odliczenia w zł"]
["Kwota nadwyżki z poprzedniej deklaracji"]
[]
[]
["2. NABYCIE TOWARÓW I USŁUG ORAZ PODATEK NALICZONY Z UWZGLĘDNIENIEM KOREKT"]
[]
[null,"Wartość netto w zł","Podatek naliczony w zł"]
["Nabycie towarów i usług zaliczanych u podatnika do środków trwałych",{"$f":"+ROUND('JPK-Zakup'!K4,)","v":0},{"$f":"+ROUND('JPK-Zakup'!L4,)","v":0}]
["Nabycie towarów i usług pozostałych",{"$f":"+ROUND('JPK-Zakup'!M4,)","v":25551},{"$f":"+ROUND('JPK-Zakup'!N4,)","v":5877}]
[]
["3. PODATEK NALICZONY - DO ODLICZENIA W ZŁ"]
["Korekta podatku naliczonego od nabycia środków trwałych",null,{"$f":"+ROUND('JPK-Zakup'!O4,)","v":0}]
["Korekta podatku naliczonego od pozostałych nabyć",null,{"$f":"+ROUND('JPK-Zakup'!P4,)","v":0}]
["Korekta podatku naliczonego, o której mowa w art. 89b ust. 1 ustawy",null,{"$f":"+ROUND('JPK-Zakup'!Q4,)","v":0}]
["Razem kwota podatku naliczonego do odliczenia",null,{"$f":"+C32+C38+C39+C42+C43+C44","v":5877}]
[]
[]
["OBLICZENIE WYSOKOŚCI ZOBOWIĄZANIA PODATKOWEGO LUB KWOTY DO ZWROTU (w zł)"]
["Kwota wydatkowana na zakup kas rejestrujących"]
["Kwota podatku objęta zaniechaniem poboru"]
["Kwota podatku podlegającego wpłacie do Urzędu Skarbowego",null,{"$f":"IF(C26>C45,C26-C45-C49-C50,0)","v":0}]
["Kwota wydatkowana na zakup kas rejestrujących, przysługująca do zwrotu w danym okresie rozliczeniowym"]
["Nadwyżka podatku naliczonego nad należnym",null,{"$f":"IF(C45-C26>=0,C45-C26+C52,0)","v":1787}]

{"sheet":"Parametry","index":5,"n_rows":10,"n_cols":3,"rows_kept":10,"cut":false,"hidden":true,"merged":[]}
[]
[null,"Rozszerzenie pliku importu:"]
[]
[]
[null,"Arkusz","Komponent obsługujący import"]
[null,"JPK-Sprzedaż","brak"]
[null,"JPK-Zakup","brak"]
[]
[]
[null,"Sprawdzanie merytoryczne","tak"]

{"sheet":"techniczne","index":6,"n_rows":100,"n_cols":20,"rows_kept":100,"cut":false,"hidden":true,"merged":[[92,16,92,17],[90,14,90,15],[90,16,90,17],[89,14,89,15],[89,16,89,17],[91,14,91,15],[91,16,91,17],[86,16,86,17],[88,14,88,15],[88,16,88,17],[87,14,87,15],[87,16,87,17],[96,14,96,15],[97,14,97,15],[98,14,98,15],[99,14,99,15],[86,14,86,15],[92,14,92,15]]}
[]
[null,null,null,null,null,null,null,null,null,null,null,null,null,null,"Elementy list","Numery automat:","Nr obowiązkowej kolumny"]
[null,null,null,null,null,null,null,null,null,null,null,null,null,null,"SprzedazWiersz","LpSprzedazy",3]
[null,null,null,null,null,null,null,null,null,null,null,null,null,null,"ZakupWiersz","LpZakupu",3]
[]
[null,null,null,null,null,null,null,null,null,null,null,null,null,null,"XED","#4438"]
[null,null,null,null,null,null,null,null,null,null,null,null,null,null,"XSD:","http://www.mf.gov.pl/documents/764034/6145258/Schemat_JPK_VAT%283%29_v1-1.xsd"]
[null,null,null,null,null,null,null,null,null,null,null,null,null,null,"Namespace:","http://jpk.mf.gov.pl/wzor/2017/11/13/1113/"]
[null,null,null,null,null,null,null,null,null,null,null,null,null,null,"AlternateImports","http://jpk.mf.gov.pl/wzor/2016/10/26/10261/"]
[null,null,null,null,null,null,null,null,null,null,null,null,null,null,"ZeroToEmpty",true]
[null,null,null,null,null,null,null,null,null,null,null,null,null,null,"ZeroFollowsFields:","K_16,K_18,K_20,K_24,K_26,K_28,K_30,K_33,K_35,K_44,K_46,PodatekNalezny,PodatekNaliczony"]
[]
[null,null,null,null,null,null,null,null,null,null,null,null,null,null,"Dodatkowe testy merytoryczne podczas Importu i dopisywania (Append):"]
[]
[null,null,null,null,null,null,null,null,null,null,null,null,null,null,"Sprawdź podczas importu","Sprawdź podczas dołączania","Wykonać przed walidacją XSD?","Węzeł z porównywaną wartością (wyrażenie Xpath) (uruchamiane dla DocumentNode)","Oczekiwana wartość","Komunikat o ewentualnym błędzie (Wpisz {Val} tam, gdzie ma być podstawiona wartość z importowanego dokumentu)"]
[null,null,null,null,null,null,null,null,null,null,null,null,null,null,{"$f":"TRUE","v":true},{"$f":"TRUE","v":true},{"$f":"TRUE","v":true},"jpk:Naglowek/jpk:KodFormularza","JPK_VAT",{"$f":"\"Niewłaściwy typ pliku JPK ({Val}), podczas gdy powinien to być '\" & S16 & \"'. Może próbujesz wczytać starszą wersję pliku JPK_VAT? Ten stary format zawiera inne pola, i taka operacja jest niemożliwa\"","v":"Niewłaściwy typ pliku JPK ({Val}), podczas gdy powinien to być 'JPK_VAT'. Może próbujesz wczytać starszą wersję pliku JPK_VAT? Ten stary format zawiera inne pola, i taka operacja jest niemożliwa"}]
[null,null,null,null,null,null,null,null,null,null,null,null,null,null,{"$f":"FALSE","v":false},{"$f":"TRUE","v":true},{"$f":"FALSE","v":false},"jpk:Podmiot1/jpk:NIP",{"$f":"NIP","v":"1111111111"},{"$f":"\"Plik dotyczy przedsiębiorstwa o innym NIP ({Val}) niż dotychczas wczytane dane (dla przedsiębiorstwa o NIP: \" &S17 & \")\"","v":"Plik dotyczy przedsiębiorstwa o innym NIP ({Val}) niż dotychczas wczytane dane (dla przedsiębiorstwa o NIP: 1111111111)"}]
[null,null,null,null,null,null,null,null,null,null,null,null,null,null,{"$f":"FALSE","v":false},{"$f":"TRUE","v":true},{"$f":"FALSE","v":false},"jpk:Naglowek/jpk:DataOd",{"$f":"TEXT(DataOd,\"rrrr-MM-dd\")","v":"2016-07-01"},{"$f":"\"Plik dotyczy okresu o innej dacie początkowej ({Val}) niż dotychczas wczytane dane (\" & S18 & \")\"","v":"Plik dotyczy okresu o innej dacie początkowej ({Val}) niż dotychczas wczytane dane (2016-07-01)"}]
[null,null,null,null,null,null,null,null,null,null,null,null,null,null,{"$f":"FALSE","v":false},{"$f":"TRUE","v":true},{"$f":"FALSE","v":false},"jpk:Naglowek/jpk:DataDo",{"$f":"TEXT(DataDo,\"rrrr-MM-dd\")","v":"2016-07-31"},{"$f":"\"Plik dotyczy okresu o innej dacie końcowej ({Val}) niż dotychczas wczytane dane (\" & S19 & \")\"","v":"Plik dotyczy okresu o innej dacie końcowej ({Val}) niż dotychczas wczytane dane (2016-07-31)"}]
[]
[null,null,null,null,null,null,null,null,null,null,null,null,null,null,"Nazwa skoroszytu:",null,"JPK_VAT"]
[null,null,null,null,null,null,null,null,null,null,null,null,null,null,"Numer seryjny:",null,"EVAL"]
[null,null,null,null,null,null,null,null,null,null,null,null,null,null,"Numer edycji:",null,1.76]
[null,null,null,null,null,null,null,null,null,null,null,null,null,null,"Wygenerowano:",null,"2021-07-14T11:29:03"]
[]
[null,null,null,null,null,null,null,null,null,null,null,null,null,null,"Komunikaty w oknach dialogowych",null,"00"]
[]
[]
[]
[]
[]
[]
[]
[]
[]
[]
[]
[]
[]
[]
[]
[]
[]
[]
[]
[]
[]
[]
[]
[]
[]
[]
[]
[]
[]
[]
[]
[]
[]
[]
[]
[]
[]
[]
[]
[]
[]
[]
[]
[]
[]
[]
[]
[]
[]
[]
[]
[]
[]
[]
[]
[]
[]
[]
[]
[null,null,null,null,null,null,null,null,null,null,null,null,null,null,"Schematy, używane gdy nie można użyć wersji online z Ministerstwa Finansów:"]
[null,null,null,null,null,null,null,null,null,null,null,null,null,null,"Nazwa ramki",null,"Przestrzeń nazw"]
[null,null,null,null,null,null,null,null,null,null,null,null,null,null,"KodyCechyKrajow",null,"http://crd.gov.pl/xml/schematy/dziedzinowe/mf/2013/05/23/eD/KodyCECHKRAJOW/"]
[null,null,null,null,null,null,null,null,null,null,null,null,null,null,"UrzedySkarbowe",null,"http://crd.gov.pl/xml/schematy/dziedzinowe/mf/2016/01/25/eD/DefinicjeTypy/"]
[null,null,null,null,null,null,null,null,null,null,null,null,null,null,"KodyKrajow",null,"http://crd.gov.pl/xml/schematy/dziedzinowe/mf/2016/01/25/eD/DefinicjeTypy/"]
[null,null,null,null,null,null,null,null,null,null,null,null,null,null,"ElementarneTypyDanych",null,"http://crd.gov.pl/xml/schematy/dziedzinowe/mf/2016/01/25/eD/DefinicjeTypy/"]
[null,null,null,null,null,null,null,null,null,null,null,null,null,null,"StrukturyDanych",null,"http://crd.gov.pl/xml/schematy/dziedzinowe/mf/2016/01/25/eD/DefinicjeTypy/"]
[null,null,null,null,null,null,null,null,null,null,null,null,null,null,"JPK",null,{"$f":"JPK_Namespace","v":"http://jpk.mf.gov.pl/wzor/2017/11/13/1113/"}]
[]
[null,null,null,null,null,null,null,null,null,null,null,null,null,null,"Weryfikacja merytoryczna niektórych pól:"]
[null,null,null,null,null,null,null,null,null,null,null,null,null,null,"Nazwy pól (kolumn)",null,"Typ testu","Pytanie, czy wyświetlić znalezione nieprawidłowości",null,"Wyjaśnienie, towarzyszące wyświetleniu nieprawidłowości"]
[null,null,null,null,null,null,null,null,null,null,null,null,null,null,"NrKontrahenta",null,"NIP","Sprawdzanie nr NIP klientów: znaleziono {Count} nieprawidłowości. Czy chcesz je teraz przejrzeć?\n\n(Jeżeli chcesz je zignorować i kontynuować zapis do pliku JPK, wybierz [Nie])\n",null,"Wiersze, które mogą zawierać błędny NIP zostały wyróżnione znakiem \"X\" w kolumnie \"Błąd\" (możesz je szybko wybrać za pomoca funkcji Filtruj). \n\nSprawdź te numery NIP (zwróć uwagę, że mogą się powtarzać dla kolejnych faktur tego samego kontrahenta). \nNumery NIP polskich przedsiębiorstw muszą się składać z 10 cyfr (np. 5251469286), BEZ  spacji czy kresek. Dla polskich NIP dopuszczalny jest przedrostek \"PL\"\nW przypadku detalistów/pracowników należy wpisywać w to pole słowo \"brak\".\n\nGdy skończysz je przeglądać/poprawiać, kliknij powtórnie w przycisk [Zapisz jako plik JPK]."]
[null,null,null,null,null,null,null,null,null,null,null,null,null,null,"K_16,K_18,K_20,K_24,K_26,K_28,K_30,K_33,K_35,K_36,K_37,K_38,K_39",null,"Zaokrąglenia","W jednej z kolumn znaleziono {Count} pól z ułamkami groszy. Te ułamki zmieniły kwotę podatku. Czy chcesz je teraz poprawić?\n\n(Jeżeli chcesz zignorować tę nieprawidłowość i kontynuować zapis do pliku JPK, wybierz [Nie])\n",null,"Wiersze, których pola zawierają ułamki groszy zostały wyróżnione znakiem \"X\" w kolumnie \"Błąd\" (możesz je szybko wybrać za pomoca funkcji Filtruj). \nKwoty w tych polach są wyświetlane z dokładnością co do grosza, ale gdy zjarzysz do ich formuł, przekonasz się że zawierają więcej miejsc po przecinku.\n \nWpisanie drobnego ułamka (0.0001) jest czasami przydatne do odnotowania w pliku JPK zerowych kwot VAT. Jednak w tym przypadku te ułamki sumują się w kwotę większą od 0.5 grosza, i powodują nieprawidłowe naliczenie sumy kontrolnej w pliku JPK. \nDlatego lepiej teraz popraw te liczby, zaokrąglając je odpowiednio do pełnych groszy.\n\nGdy skończysz nanosić te poprawki, kliknij powtórnie w przycisk [Zapisz jako plik JPK]."]
[null,null,null,null,null,null,null,null,null,null,null,null,null,null,"NrDostawcy",null,"NIP","Sprawdzanie nr NIP dostawców: znaleziono {Count} nieprawidłowości. Czy chcesz je teraz przejrzeć?\n\n(Jeżeli chcesz je zignorować i kontynuować zapis do pliku JPK, wybierz [Nie])\n",null,"Wiersze, które mogą zawierać błędny NIP zostały wyróżnione znakiem \"X\" w kolumnie \"Błąd\" (możesz je szybko wybrać za pomoca funkcji Filtruj). \n\nSprawdź te numery NIP (zwróć uwagę, że mogą się powtarzać dla kolejnych faktur tego samego kontrahenta). \nNumery NIP polskich przedsiębiorstw muszą się składać z 10 cyfr (np. 5251469286), BEZ przedrostka \"PL\" i kresek.\nW przypadku gdy kontrahent nie ma żadnego numeru (np. dla specjalnych zapisów technicznych) należy wpisywać w to pole słowo \"brak\".\n\nGdy skończysz je przeglądać/poprawiać, kliknij powtórnie w przycisk [Zapisz jako plik JPK]."]
[null,null,null,null,null,null,null,null,null,null,null,null,null,null,"K_44,K_46,K_47,K_48,K_49,K_50",null,"Zaokrąglenia","W jednej z kolumn znaleziono {Count} pól z ułamkami groszy. Te ułamki zmieniły kwotę podatku. Czy chcesz je teraz poprawić?\n\n(Jeżeli chcesz zignorować tę nieprawidłowość i kontynuować zapis do pliku JPK, wybierz [Nie])\n",null,"Wiersze, których pola zawierają ułamki groszy zostały wyróżnione znakiem \"X\" w kolumnie \"Błąd\" (możesz je szybko wybrać za pomoca funkcji Filtruj). \nKwoty w tych polach są wyświetlane z dokładnością co do grosza, ale gdy zjarzysz do ich formuł, przekonasz się że zawierają więcej miejsc po przecinku.\n \nWpisanie drobnego ułamka (0.0001) jest czasami przydatne do odnotowania w pliku JPK zerowych kwot VAT. Jednak w tym przypadku te ułamki sumują się w kwotę większą od 0.5 grosza, i powodują nieprawidłowe naliczenie sumy kontrolnej w pliku JPK. \nDlatego lepiej teraz popraw te liczby, zaokrąglając je odpowiednio do pełnych groszy.\n\nGdy skończysz nanosić te poprawki, kliknij powtórnie w przycisk [Zapisz jako plik JPK]."]